fUSD/lending_fUSD_20241111
["ID","MTS","AMOUNT","RATE_DAILY","PERIOD"]
[341961095,1731328232661,-871.22,0.00013255,2]
[341961096,1731328232670,-871.22,0.00013262,2]
[341961097,1731328232680,-871.22,0.00013269,2]
[341961098,1731328232689,-871.22,0.00013276,2]
[341961099,1731328232698,-871.22,0.00013283,2]
[341961100,1731328232707,-272.85,0.00013285,2]
[341961101,1731328232717,-871.22,0.0001329,2]
[341961102,1731328232727,-871.22,0.00013297,2]
[341961103,1731328232737,-871.22,0.00013304,2]
[341961104,1731328232746,-871.22,0.0001331,2]
[341961105,1731328232756,-871.22,0.00013317,2]
[341961106,1731328232765,-871.22,0.00013324,2]
[341961107,1731328232775,-871.22,0.00013331,2]
[341961108,1731328232784,-871.22,0.00013338,2]
[341961109,1731328232794,-432.43,0.00013341,2]
[341961110,1731328232803,-762.78,0.00013341,2]
[341961111,1731328232813,-684.37,0.00013341,2]
[341961112,1731328232823,-948.19,0.00013341,2]
[341961113,1731328232832,-762.78,0.00013341,2]
[341961114,1731328232845,-432.43,0.00013341,2]
[341961115,1731328232855,-871.22,0.00013345,2]
[341961116,1731328232864,-871.22,0.00013352,2]
[341961117,1731328232874,-468.55,0.00013478,2]
[341961118,1731328232885,-700.8,0.00013478,2]
[341961119,1731328232895,-200.0,0.000137,2]
[341961120,1731328232908,-150.0,0.00013716,2]
[341961121,1731328232918,-7606.307,0.0001388,2]
[341961122,1731328232927,-282.23373172,0.0001388,2]
[341961123,1731328232936,-282.23373167,0.00013882,2]
[341961124,1731328232946,-282.23373167,0.00013884,2]
[341961125,1731328232956,-282.23373167,0.00013887,2]
[341961126,1731328232966,-282.23373167,0.00013889,2]
[341961127,1731328232976,-282.23373167,0.00013891,2]
[341961128,1731328232985,-282.23373167,0.00013893,2]
[341961129,1731328232995,-282.23373167,0.00013896,2]
[341961130,1731328233005,-282.23373167,0.00013898,2]
[341961131,1731328233014,-9117.145,0.00013898,2]
[341961132,1731328233024,-283.5305,0.00013899,2]
[341961133,1731328233034,-27245.2056,0.00013899,2]
[341961134,1731328233044,-20244.5116,0.00013899,2]
[341961135,1731328233054,-1000.0,0.00013899,2]
[341961136,1731328233064,-14225.6124,0.00013899,2]
[341961137,1731328233074,-202.7935973,0.000139,2]
[341961138,1731328233084,-282.23373167,0.000139,2]
[341961139,1731328233094,-272.85,0.00013918,2]
[341961140,1731328233105,-338.45,0.0001397,2]
[341961141,1731328233115,-338.45,0.0001397,2]
[341961142,1731328233128,-338.45,0.0001397,2]
[341961143,1731328233137,-338.45,0.0001397,2]
[341961144,1731328233147,-338.45,0.0001397,2]
[341961145,1731328233159,-500.0,0.00013979,2]
[341961146,1731328233170,-373.83473506,0.00013979,2]
[341961147,1731328233180,-1713.27,0.00013979,2]
[341961148,1731328233190,-1231.95,0.00013979,2]
[341961149,1731328233201,-1231.95,0.00013979,2]
[341961150,1731328233211,-1231.95,0.00013979,2]
[341961151,1731328233222,-500.0,0.00013979,2]
[341961152,1731328233232,-500.0,0.00013979,2]
[341961153,1731328233242,-500.0,0.00013979,2]
[341961154,1731328233252,-500.0,0.00013979,2]
[341961155,1731328233261,-500.0,0.00013979,2]
[341961156,1731328233270,-3193.13,0.00013979,2]
[341961157,1731328233280,-3193.13,0.00013979,2]
[341961158,1731328233290,-3193.13,0.00013979,2]
[341961159,1731328233299,-500.0,0.00013979,2]
[341961160,1731328233309,-500.0,0.00013979,2]
[341961161,1731328233318,-500.0,0.00013979,2]
[341961162,1731328233327,-500.0,0.00013979,2]
[341961163,1731328233337,-500.0,0.00013979,2]
[341961164,1731328233347,-500.0,0.00013979,2]
[341961165,1731328233356,-500.0,0.00013979,2]
[341961166,1731328233367,-443.41,0.00013979,2]
[341961167,1731328233377,-500.0,0.00013979,2]
[341961168,1731328233387,-500.0,0.00013979,2]
[341961169,1731328233397,-500.0,0.00013979,2]
[341961170,1731328233408,-500.0,0.00013979,2]
[341961171,1731328233418,-500.0,0.00013979,2]
[341961172,1731328233427,-500.0,0.00013979,2]
[341961173,1731328233437,-259.0266314,0.00013979,2]
[341961174,1731328233446,-500.0,0.00013979,2]
[341961175,1731328233456,-500.0,0.00013979,2]
[341961176,1731328233465,-500.0,0.00013979,2]
[341961177,1731328233475,-500.0,0.00013979,2]
[341961178,1731328233484,-500.0,0.00013979,2]
[341961179,1731328233494,-500.0,0.00013979,2]
[341961180,1731328233503,-500.0,0.00013979,2]
[341961181,1731328233513,-500.0,0.00013979,2]
[341961182,1731328233522,-500.0,0.00013979,2]
[341961183,1731328233532,-166.4,0.00013979,2]
[341961184,1731328233541,-500.0,0.00013979,2]
[341961185,1731328233551,-500.0,0.00013979,2]
[341961186,1731328233561,-500.0,0.00013979,2]
[341961187,1731328233571,-6713.85335253,0.0001398,2]
[341961188,1731328233581,-176779.01208214,0.0001398,2]
[341961190,1731328235456,-500.0,0.00013979,2]
[341961192,1731328235468,-292.79972404,0.00013979,2]
[341961194,1731328235477,-500.0,0.00013979,2]
[341961196,1731328235486,-507.50597659,0.00013979,2]
[341961197,1731328235495,-5982.40485819,0.0001398,2]
[341961204,1731328235567,535.74,0.00011549,2]
[341961266,1731328238186,-535.74,0.00013813,2]
[341961267,1731328238196,-1330.59,0.00013979,2]
[341961268,1731328238206,-6784.45763566,0.0001398,2]
[341961269,1731328238217,-303.80286896,0.0001398,2]
[341961270,1731328238244,-269754.86999522,0.0001398,2]
[341961271,1731328238254,-155442.74194322,0.0001398,2]
[341961272,1731328238263,-24637.0095541,0.00013995,2]
[341961273,1731328238272,-500.0,0.00013996,2]
[341961274,1731328238282,-500.0,0.00013996,2]
[341961275,1731328238291,-500.0,0.00013996,2]
[341961276,1731328238301,-151.25383523,0.00013996,2]
[341961277,1731328238310,-500.0,0.00013996,2]
[341961278,1731328238319,-500.0,0.00013996,2]
[341961279,1731328238328,-500.0,0.00013996,2]
[341961280,1731328238338,-500.0,0.00013996,2]
[341961281,1731328238347,-500.0,0.00013996,2]
[341961282,1731328238357,-500.0,0.00013996,2]
[341961283,1731328238366,-500.0,0.00013996,2]
[341961284,1731328238375,-500.0,0.00013996,2]
[341961285,1731328238384,-500.0,0.00013996,2]
[341961286,1731328238393,-517.205,0.00013996,2]
[341961287,1731328238403,-500.0,0.00013996,2]
[341961288,1731328238414,-500.0,0.00013996,2]
[341961289,1731328238424,-500.0,0.00013996,2]
[341961290,1731328238433,-603.19821436,0.00013997,2]
[341961291,1731328238443,-500.0,0.00013997,2]
[341961292,1731328238452,-500.0,0.00013997,2]
[341961293,1731328238461,-500.0,0.00013997,2]
[341961294,1731328238470,-500.0,0.00013997,2]
[341961295,1731328238479,-500.0,0.00013997,2]
[341961296,1731328238488,-500.0,0.00013997,2]
[341961297,1731328238498,-500.0,0.00013997,2]
[341961298,1731328238507,-621.32,0.00013997,2]
[341961299,1731328238516,-500.0,0.00013997,2]
[341961300,1731328238525,-611.82360134,0.00013997,2]
[341961301,1731328238534,-500.0,0.00013997,2]
[341961302,1731328238544,-232.16,0.00013997,2]
[341961303,1731328238553,-500.0,0.00013997,2]
[341961304,1731328238562,-1321.05,0.00013997,2]
[341961305,1731328238572,-160.189432,0.00013997,2]
[341961306,1731328238581,-1321.05,0.00013997,2]
[341961307,1731328238590,-1321.05,0.00013997,2]
[341961308,1731328238599,-160.189432,0.00013997,2]
[341961309,1731328238608,-500.0,0.00013997,2]
[341961310,1731328238617,-500.0,0.00013997,2]
[341961311,1731328238626,-500.0,0.00013997,2]
[341961312,1731328238636,-500.0,0.00013997,2]
[341961313,1731328238645,-500.0,0.00013997,2]
[341961314,1731328238657,-500.0,0.00013997,2]
[341961315,1731328238666,-500.0,0.00013997,2]
[341961316,1731328238675,-154.688144,0.00013997,2]
[341961317,1731328238684,-572.37,0.00013997,2]
[341961318,1731328238693,-572.37,0.00013997,2]
[341961319,1731328238703,-500.0,0.00013997,2]
[341961320,1731328238712,-500.0,0.00013997,2]
[341961321,1731328238722,-500.0,0.00013997,2]
[341961322,1731328238731,-1074.55,0.00013997,2]
[341961323,1731328238740,-1074.55,0.00013997,2]
[341961324,1731328238749,-500.0,0.00013997,2]
[341961325,1731328238759,-500.0,0.00013997,2]
[341961326,1731328238768,-500.0,0.00013997,2]
[341961327,1731328238777,-500.0,0.00013997,2]
[341961328,1731328238786,-500.0,0.00013997,2]
[341961329,1731328238795,-500.0,0.00013997,2]
[341961330,1731328238804,-500.0,0.00013997,2]
[341961331,1731328238814,-1487.53,0.00013997,2]
[341961333,1731328238822,-1487.53,0.00013997,2]
[341961335,1731328238832,-1487.53,0.00013997,2]
[341961337,1731328238841,-292.46,0.00013997,2]
[341961339,1731328238855,-500.0,0.00013997,2]
[341961342,1731328238864,-500.0,0.00013997,2]
[341961344,1731328238873,-500.0,0.00013997,2]
[341961346,1731328238882,-500.0,0.00013997,2]
[341961348,1731328238893,-500.0,0.00013997,2]
[341961349,1731328238903,-711.26,0.00013997,2]
[341961352,1731328238914,-500.0,0.00013997,2]
[341961354,1731328238926,-711.26,0.00013997,2]
[341961356,1731328238936,-500.0,0.00013997,2]
[341961357,1731328238945,-711.26,0.00013997,2]
[341961360,1731328238955,-1713.27,0.00013997,2]
[341961362,1731328238965,-1713.27,0.00013997,2]
[341961364,1731328238975,-500.0,0.00013997,2]
[341961366,1731328238984,-500.0,0.00013997,2]
[341961367,1731328238996,-500.0,0.00013997,2]
[341961370,1731328239006,-500.0,0.00013997,2]
[341961372,1731328239015,-500.0,0.00013997,2]
[341961374,1731328239024,-500.0,0.00013997,2]
[341961376,1731328239034,-185.31,0.00013997,2]
[341961377,1731328239043,-500.0,0.00013997,2]
[341961380,1731328239053,-500.0,0.00013997,2]
[341961381,1731328239063,-349.06876699,0.00013997,2]
[341961383,1731328239072,-500.0,0.00013997,2]
[341961385,1731328239082,-500.0,0.00013997,2]
[341961387,1731328239091,-500.0,0.00013997,2]
[341961389,1731328239100,-500.0,0.00013997,2]
[341961391,1731328239111,-500.0,0.00013997,2]
[341961393,1731328239120,-154.688147,0.00013997,2]
[341961395,1731328239130,-500.0,0.00013997,2]
[341961398,1731328239140,-500.0,0.00013997,2]
[341961400,1731328239150,-500.0,0.00013997,2]
[341961402,1731328239162,-500.0,0.00013997,2]
[341961404,1731328239171,-500.0,0.00013997,2]
[341961405,1731328239181,-500.0,0.00013997,2]
[341961407,1731328239191,-500.0,0.00013997,2]
[341961409,1731328239201,-500.0,0.00013997,2]
[341961410,1731328239211,-228.49331991,0.00013997,2]
[341961411,1731328239221,-500.0,0.00013997,2]
[341961412,1731328239230,-500.0,0.00013997,2]
[341961413,1731328239240,-500.0,0.00013997,2]
[341961414,1731328239250,-500.0,0.00013997,2]
[341961415,1731328239259,-506.12,0.00013997,2]
[341961416,1731328239268,-581.18,0.00013997,2]
[341961417,1731328239278,-557.73393371,0.00013997,2]
[341961418,1731328239287,-500.0,0.00013997,2]
[341961419,1731328239296,-500.0,0.00013997,2]
[341961420,1731328239306,-625.00598839,0.00013997,2]
[341961421,1731328239316,-571.24,0.00013997,2]
[341961422,1731328239326,-571.24,0.00013997,2]
[341961423,1731328239336,-571.24,0.00013997,2]
[341961424,1731328239346,-500.0,0.00013997,2]
[341961425,1731328239355,-500.0,0.00013997,2]
[341961427,1731328239365,-500.0,0.00013997,2]
[341961428,1731328239375,-500.0,0.00013997,2]
[341961430,1731328239385,-500.0,0.00013997,2]
[341961432,1731328239394,-500.0,0.00013997,2]
[341961434,1731328239404,-500.0,0.00013997,2]
[341961435,1731328239416,-322.66,0.00013997,2]
[341961436,1731328239426,-500.0,0.00013997,2]
[341961437,1731328239435,-500.0,0.00013997,2]
[341961438,1731328239444,-500.0,0.00013997,2]
[341961439,1731328239454,-500.0,0.00013997,2]
[341961440,1731328239463,-500.0,0.00013997,2]
[341961441,1731328239472,-500.0,0.00013997,2]
[341961442,1731328239482,-1330.59,0.00013997,2]
[341961443,1731328239491,-1330.59,0.00013997,2]
[341961444,1731328239500,-500.0,0.00013998,2]
[341961445,1731328239509,-500.0,0.00013998,2]
[341961446,1731328239519,-500.0,0.00013998,2]
[341961447,1731328239528,-500.0,0.00013998,2]
[341961448,1731328239537,-503.22535895,0.00013998,2]
[341961449,1731328239547,-500.0,0.00013998,2]
[341961450,1731328239556,-500.0,0.00013998,2]
[341961451,1731328239565,-500.0,0.00013998,2]
[341961452,1731328239575,-500.0,0.00013998,2]
[341961453,1731328239584,-500.0,0.00013998,2]
[341961454,1731328239594,-500.0,0.00013998,2]
[341961455,1731328239604,-629.52,0.00013998,2]
[341961456,1731328239613,-187.738866,0.00013998,2]
[341961457,1731328239623,-500.0,0.00013998,2]
[341961458,1731328239632,-500.0,0.00013998,2]
[341961459,1731328239641,-536.9340952,0.00013998,2]
[341961460,1731328239651,-323.94,0.00013998,2]
[341961461,1731328239662,-569.46,0.00013998,2]
[341961462,1731328239672,-500.0,0.00013998,2]
[341961463,1731328239681,-258.25695246,0.00013998,2]
[341961464,1731328239690,-500.0,0.00013998,2]
[341961465,1731328239699,-500.0,0.00013998,2]
[341961466,1731328239709,-500.0,0.00013998,2]
[341961467,1731328239719,-576.56,0.00013998,2]
[341961468,1731328239729,-500.0,0.00013998,2]
[341961469,1731328239738,-581.41,0.00013998,2]
[341961470,1731328239748,-500.0,0.00013998,2]
[341961471,1731328239757,-500.0,0.00013998,2]
[341961472,1731328239768,-500.0,0.00013998,2]
[341961473,1731328239777,-299.24128575,0.00013998,2]
[341961474,1731328239787,-500.0,0.00013998,2]
[341961475,1731328239797,-500.0,0.00013998,2]
[341961476,1731328239807,-500.0,0.00013998,2]
[341961477,1731328239817,-500.0,0.00013998,2]
[341961479,1731328239827,-500.0,0.00013998,2]
[341961481,1731328239837,-500.0,0.00013998,2]
[341961482,1731328239847,-500.0,0.00013998,2]
[341961483,1731328239859,-503.89746542,0.00013998,2]
[341961484,1731328239868,-500.0,0.00013998,2]
[341961485,1731328239877,-500.0,0.00013998,2]
[341961487,1731328239886,-500.0,0.00013998,2]
[341961488,1731328239896,-500.0,0.00013998,2]
[341961489,1731328239908,-646.33,0.00013998,2]
[341961490,1731328239918,-500.0,0.00013998,2]
[341961491,1731328239929,-578.0,0.00013998,2]
[341961492,1731328239939,-500.0,0.00013998,2]
[341961494,1731328239949,-500.0,0.00013998,2]
[341961495,1731328239958,-268.63,0.00013998,2]
[341961496,1731328239968,-500.0,0.00013998,2]
[341961497,1731328239977,-473.9213269,0.00013998,2]
[341961498,1731328239987,-500.0,0.00013998,2]
[341961499,1731328239996,-500.0,0.00013998,2]
[341961500,1731328240005,-500.0,0.00013998,2]
[341961501,1731328240015,-500.0,0.00013998,2]
[341961502,1731328240024,-500.0,0.00013998,2]
[341961503,1731328240033,-366.30921186,0.00013998,2]
[341961504,1731328240043,-463.32,0.00013998,2]
[341961505,1731328240052,-500.0,0.00013998,2]
[341961506,1731328240062,-500.0,0.00013998,2]
[341961507,1731328240071,-235.06,0.00013998,2]
[341961508,1731328240081,-446.49989398,0.00013998,2]
[341961509,1731328240091,-214.82,0.00013998,2]
[341961510,1731328240100,-1321.05,0.00013998,2]
[341961511,1731328240109,-319.91118776,0.00013998,2]
[341961512,1731328240118,-500.0,0.00013998,2]
[341961513,1731328240127,-500.0,0.00013998,2]
[341961514,1731328240136,-500.0,0.00013998,2]
[341961515,1731328240146,-500.0,0.00013998,2]
[341961516,1731328240155,-154.688144,0.00013998,2]
[341961517,1731328240166,-500.0,0.00013998,2]
[341961518,1731328240175,-572.37,0.00013998,2]
[341961519,1731328240184,-500.0,0.00013998,2]
[341961520,1731328240194,-572.37,0.00013998,2]
[341961521,1731328240204,-500.0,0.00013998,2]
[341961522,1731328240213,-500.0,0.00013998,2]
[341961523,1731328240223,-500.0,0.00013998,2]
[341961524,1731328240233,-500.0,0.00013998,2]
[341961525,1731328240242,-500.0,0.00013998,2]
[341961526,1731328240251,-500.0,0.00013998,2]
[341961527,1731328240261,-500.0,0.00013998,2]
[341961528,1731328240270,-500.0,0.00013998,2]
[341961529,1731328240280,-378.57938979,0.00013998,2]
[341961530,1731328240289,-1074.55,0.00013998,2]
[341961531,1731328240299,-1074.55,0.00013998,2]
[341961532,1731328240308,-500.0,0.00013998,2]
[341961533,1731328240318,-500.0,0.00013998,2]
[341961534,1731328240327,-500.0,0.00013998,2]
[341961535,1731328240337,-500.0,0.00013998,2]
[341961536,1731328240347,-500.0,0.00013998,2]
[341961537,1731328240357,-620.47,0.00013998,2]
[341961538,1731328240366,-354.19064617,0.00013998,2]
[341961539,1731328240376,-500.0,0.00013998,2]
[341961540,1731328240385,-1487.53,0.00013998,2]
[341961541,1731328240394,-500.0,0.00013998,2]
[341961542,1731328240403,-500.0,0.00013998,2]
[341961544,1731328240415,-500.0,0.00013998,2]
[341961545,1731328240425,-401.66,0.00013998,2]
[341961547,1731328240434,-711.26,0.00013998,2]
[341961548,1731328240443,-1713.27,0.00013998,2]
[341961549,1731328240452,-1713.27,0.00013998,2]
[341961550,1731328240462,-1231.95,0.00013998,2]
[341961551,1731328240471,-1231.95,0.00013998,2]
[341961552,1731328240481,-500.0,0.00013998,2]
[341961553,1731328240490,-500.0,0.00013998,2]
[341961554,1731328240500,-500.0,0.00013998,2]
[341961555,1731328240509,-500.0,0.00013998,2]
[341961556,1731328240519,-500.0,0.00013998,2]
[341961557,1731328240528,-500.0,0.00013998,2]
[341961559,1731328240538,-500.0,0.00013998,2]
[341961560,1731328240547,-500.0,0.00013998,2]
[341961561,1731328240556,-3193.13,0.00013998,2]
[341961562,1731328240565,-3193.13,0.00013998,2]
[341961563,1731328240575,-500.0,0.00013998,2]
[341961564,1731328240584,-500.0,0.00013998,2]
[341961565,1731328240593,-500.0,0.00013998,2]
[341961566,1731328240602,-500.0,0.00013998,2]
[341961567,1731328240612,-500.0,0.00013998,2]
[341961568,1731328240621,-500.0,0.00013998,2]
[341961569,1731328240630,-500.0,0.00013998,2]
[341961570,1731328240639,-500.0,0.00013998,2]
[341961571,1731328240648,-500.0,0.00013998,2]
[341961572,1731328240659,-500.0,0.00013998,2]
[341961573,1731328240669,-171.84,0.00013998,2]
[341961574,1731328240677,-500.0,0.00013998,2]
[341961575,1731328240686,-500.0,0.00013998,2]
[341961576,1731328240695,-151.0,0.00013998,2]
[341961577,1731328240704,-151.0,0.00013998,2]
[341961578,1731328240714,-500.0,0.00013998,2]
[341961579,1731328240723,-500.0,0.00013998,2]
[341961580,1731328240732,-571.24,0.00013998,2]
[341961581,1731328240742,-500.0,0.00013998,2]
[341961582,1731328240751,-500.0,0.00013998,2]
[341961583,1731328240760,-500.0,0.00013998,2]
[341961584,1731328240769,-500.0,0.00013998,2]
[341961585,1731328240778,-500.0,0.00013998,2]
[341961586,1731328240787,-151.0,0.00013998,2]
[341961587,1731328240797,-151.0,0.00013998,2]
[341961588,1731328240807,-500.0,0.00013998,2]
[341961589,1731328240816,-151.0,0.00013998,2]
[341961590,1731328240826,-500.0,0.00013998,2]
[341961591,1731328240836,-500.0,0.00013998,2]
[341961592,1731328240846,-500.0,0.00013998,2]
[341961593,1731328240859,-500.0,0.00013998,2]
[341961594,1731328240868,-500.0,0.00013998,2]
[341961595,1731328240877,-150.0,0.00013998,2]
[341961596,1731328240887,-1330.59,0.00013998,2]
[341961597,1731328240898,-1330.59,0.00013998,2]
[341961598,1731328240910,-400.0,0.00013998,2]
[341961599,1731328240919,-400.0,0.00013998,2]
[341961600,1731328240932,-400.0,0.00013998,2]
[341961601,1731328240941,-400.0,0.00013998,2]
[341961602,1731328240950,-400.0,0.00013998,2]
[341961603,1731328240960,-400.0,0.00013998,2]
[341961604,1731328240969,-400.0,0.00013998,2]
[341961605,1731328240978,-400.0,0.00013998,2]
[341961606,1731328240987,-400.0,0.00013998,2]
[341961607,1731328240996,-344.3894727,0.00013998,2]
[341961608,1731328241006,-200.0,0.00013999,2]
[341961609,1731328241015,-200.0,0.00013999,2]
[341961610,1731328241025,-200.0,0.00013999,2]
[341961611,1731328241034,-200.0,0.00013999,2]
[341961612,1731328241043,-200.0,0.00013999,2]
[341961613,1731328241052,-200.0,0.00013999,2]
[341961614,1731328241062,-200.0,0.00013999,2]
[341961615,1731328241073,-330.75543567,0.00013999,2]
[341961616,1731328241083,-2738.74538083,0.00013999,2]
[341961617,1731328241092,-151.0,0.00013999,2]
[341961618,1731328241101,-151.0,0.00013999,2]
[341961619,1731328241111,-500.0,0.00013999,2]
[341961620,1731328241119,-500.0,0.00013999,2]
[341961621,1731328241129,-500.0,0.00013999,2]
[341961622,1731328241138,-500.0,0.00013999,2]
[341961623,1731328241147,-500.0,0.00013999,2]
[341961624,1731328241161,-500.0,0.00013999,2]
[341961625,1731328241180,-500.0,0.00013999,2]
[341961626,1731328241188,-500.0,0.00013999,2]
[341961627,1731328241197,-500.0,0.00013999,2]
[341961628,1731328241207,-500.0,0.00013999,2]
[341961629,1731328241215,-500.0,0.00013999,2]
[341961630,1731328241224,-297.64791379,0.00013999,2]
[341961631,1731328241234,-500.0,0.00013999,2]
[341961632,1731328241243,-215.24357271,0.00013999,2]
[341961633,1731328241253,-251.733153,0.00013999,2]
[341961634,1731328241261,-251.733153,0.00013999,2]
[341961635,1731328241270,-251.733153,0.00013999,2]
[341961636,1731328241280,-251.733153,0.00013999,2]
[341961637,1731328241288,-151.0,0.00013999,2]
[341961638,1731328241468,-151.0,0.00013999,2]
[341961639,1731328241479,-151.0,0.00013999,2]
[341961640,1731328241488,-151.0,0.00013999,2]
[341961641,1731328241498,-500.0,0.00013999,2]
[341961642,1731328241508,-500.0,0.00013999,2]
[341961643,1731328241517,-500.0,0.00013999,2]
[341961644,1731328241526,-249.62475,0.00013999,2]
[341961645,1731328241535,-249.62475,0.00013999,2]
[341961646,1731328241544,-249.62475,0.00013999,2]
[341961647,1731328241553,-249.62475,0.00013999,2]
[341961648,1731328241563,-151.0,0.00013999,2]
[341961649,1731328241572,-151.0,0.00013999,2]
[341961650,1731328241581,-151.0,0.00013999,2]
[341961651,1731328241590,-151.0,0.00013999,2]
[341961652,1731328241599,-151.0,0.00013999,2]
[341961653,1731328241608,-152.84008,0.00013999,2]
[341961654,1731328241617,-151.0,0.00013999,2]
[341961655,1731328241626,-151.0,0.00013999,2]
[341961656,1731328241635,-151.0,0.00013999,2]
[341961657,1731328241644,-151.0,0.00013999,2]
[341961658,1731328241653,-151.0,0.00013999,2]
[341961659,1731328241665,-151.0,0.00013999,2]
[341961660,1731328241674,-151.0,0.00013999,2]
[341961661,1731328241683,-151.0,0.00013999,2]
[341961662,1731328241692,-151.0,0.00013999,2]
[341961663,1731328241701,-151.0,0.00013999,2]
[341961664,1731328241710,-151.0,0.00013999,2]
[341961665,1731328241719,-151.0,0.00013999,2]
[341961666,1731328241727,-151.0,0.00013999,2]
[341961667,1731328241737,-151.0,0.00013999,2]
[341961668,1731328241746,-152.917189,0.00013999,2]
[341961669,1731328241755,-151.0,0.00013999,2]
[341961670,1731328241764,-151.652402,0.00013999,2]
[341961671,1731328241773,-151.0,0.00013999,2]
[341961672,1731328241782,-199.381981,0.00013999,2]
[341961673,1731328241791,-606.42,0.00013999,2]
[341961674,1731328241800,-151.0,0.00013999,2]
[341961675,1731328241809,-151.0,0.00013999,2]
[341961676,1731328241818,-152.268276,0.00013999,2]
[341961677,1731328241827,-151.0,0.00013999,2]
[341961678,1731328241836,-151.0,0.00013999,2]
[341961679,1731328241850,-153.93813,0.00013999,2]
[341961680,1731328241859,-205.794699,0.00013999,2]
[341961681,1731328241868,-205.794699,0.00013999,2]
[341961682,1731328241877,-205.794699,0.00013999,2]
[341961683,1731328241887,-151.0,0.00013999,2]
[341961684,1731328241896,-205.794699,0.00013999,2]
[341961685,1731328241905,-205.794699,0.00013999,2]
[341961686,1731328241917,-205.794699,0.00013999,2]
[341961687,1731328241928,-500.0,0.00013999,2]
[341961688,1731328241937,-304.12,0.00013999,2]
[341961689,1731328241947,-1125.0,0.00013999,2]
[341961690,1731328241957,-151.0,0.00013999,2]
[341961691,1731328241967,-151.0,0.00013999,2]
[341961692,1731328241977,-151.0,0.00013999,2]
[341961693,1731328241987,-151.0,0.00013999,2]
[341961694,1731328241997,-151.0,0.00013999,2]
[341961695,1731328242007,-151.0,0.00013999,2]
[341961696,1731328242017,-151.0,0.00013999,2]
[341961697,1731328242027,-151.0,0.00013999,2]
[341961698,1731328242037,-151.0,0.00013999,2]
[341961699,1731328242046,-500.0,0.00013999,2]
[341961700,1731328242055,-500.0,0.00013999,2]
[341961701,1731328242065,-500.0,0.00013999,2]
[341961702,1731328242074,-158.6,0.00013999,2]
[341961703,1731328242083,-500.0,0.00013999,2]
[341961704,1731328242092,-500.0,0.00013999,2]
[341961705,1731328242102,-500.0,0.00013999,2]
[341961706,1731328242111,-500.0,0.00013999,2]
[341961707,1731328242120,-267.71281887,0.00013999,2]
[341961708,1731328242129,-500.0,0.00013999,2]
[341961709,1731328242139,-500.0,0.00013999,2]
[341961710,1731328242148,-500.0,0.00013999,2]
[341961711,1731328242159,-579.98306775,0.00013999,2]
[341961712,1731328242168,-151.0,0.00013999,2]
[341961713,1731328242178,-151.0,0.00013999,2]
[341961714,1731328242187,-151.0,0.00013999,2]
[341961715,1731328242197,-151.0,0.00013999,2]